Workbook

Sheet Instructions
B1: Disclaimer
A2: This is a simulation and interactive tool for memebers to use to understand their units performance
A3: “Transmitting information to PJM member companies, partners, the electric industry, and the public is an important function of PJM. This interactive tool exists only to provide a simulation for educational and discussion purposes. The information provided in this simulation is for informational, educational, and discussion purposes only. It is expressly understood that the PJM Open Access Transmission Tariff (“OATT”), Amended and Restated Operating Agreement of PJM Interconnection, L.L.C. (“OA”), Reliability Assurance Agreement among Load Serving Entities in the PJM Region (“RAA”), Transmission Owners Agreement (“TOA”), PJM Joint Operating Agreements (“JOA”), PJM schedules, service agreements, and manuals as amended may contain or result in different calculations and results than those contained herein.
A4: PJM expressly disclaims any obligation or any warranty of any kind, whether express or implied, as to any information, results, or other matters whatsoever arising from the information provided herein or the information resulting from this interactive tool. In no event shall PJM be liable for any damages of any kind, including, but not limited to, direct, indirect, general, special, incidental or consequential damages arising out of any use of this interactive tool, simulation, or the information contained herein.”
B5: Instructions
A6: Step 1: | B6: Enter in all unit information to set up template
B7: All green colored cells need to entered by the user
B8: **Data should be entered at 2 second granularity for the most accuracte calculation
B10: Unit Information: | C10: Enter Unit Information here:
B11: Unit Name: | C11: Enter Resource Name | D11: Will be used to help PJM staff troubleshoot if data discrepancy is found
B12: MarketID: | C12: Enter Units Makets Gateway ID | D12: Will be used to help PJM staff troubleshoot if data discrepancy is found
B13: Frequency: | C13: Low
B14: Regulation | C14: Yes/No if unit is on for regulation | D14: Used to determine expected MW of PFR response
B15: Eco Max: | C15: Enter Unit's ECOMAX | D15: Used in expected MW calculation
B16: Eco Min: | C16: Enter Unit's ECOMIN | D16: Used in expected MW calculation
B17: Zone | C17: Enter Unit's Control Zone | D17: Used for tracking purposes
B18: Fuel Type | C18: Enter Unit's Fuel Type | D18: Used for tracking purposes
B19: Governor Settings | C19: Enter Governor Data here:
B20: Droop (%): | C20: Enter unit's droop setting | D20: Enter as a percent
B21: Deadband (Hz): | C21: Enter unit's deadband setting | D21: Enter as a decmial (field is in Hz)
B22: Plot Times | C22: Enter Start Date/Time of Event here:
B23: Event Start: | C23: Enter event start time (T0) | D23: Will be used to calculated expected response and align frequency
B24: Plot Start: | C24: 2017-11-20T16:11:15
B25: Plot End: | C25: 2017-11-20T16:16:15
B26: Interval(seconds): | C26: Enter Data sampling interval (2, 10, etc) | D26: Used to set up data sampling table. 2sec samples are preferred if available
A29: Step 2: | B29: Enter in unit telemetry data for the set timestamps start in cell E43
B30: All green colored cells need to entered by the user
A32: Time | B32: Frequency (Hz) | C32: Unit Output (MW) | D32: Eco Max (MW) | E32: Eco Min (MW) | F32: PFR Capacity (MW) | G32: Expected Response (MW) | H32: Expected Response Graph (Net MW) | I32: Basepoint (MW) | L32: Output Timestamp | M32: Unit Output (MW)
A33: Time Stamp | B33: Enter Frequency Data | C33: Enter Unit Output Data (MW) | D33: calculated field 5% buffer on entered EcoMax for PFR calculation | E33: calculated field 5% buffer on entered EcoMin for PFR calculation | F33: calculated field PFR capability on unit | G33: calculated field Expected Response based on Droop equation | H33: calculated field total unit output expected based on droop equation | I33: Enter Unit Basepoint (ECOBP) Data | L33: Time Stamp | M33: Enter Unit Output Data (MW)
A36: Step 3: | B36: Review Results
B38: Actual Response = | C38: 0 | D38: MW
B39: Expected Response = | C39: 2.372757349 | D39: MW
B40: Performance= | C40: 0 | D40: MW | E40: Performance will be calculated based on Actual and Expected Response
C41: Fail | E41: Pass/Fail assessment based on 50% performance score

Sheet Event
A1: Unit Information: | B1: Enter Unit Information here:
A2: Unit Name: | B2: Resource123
A3: MarketID: | B3: 123
A4: Frequency: | B4: =IF(AVERAGE(IF(ISNUMBER(F83:F99),F83:F99))<60,"Low",IF(AVERAGE(IF(ISNUMBER(F83:F99),F83:F99))>60,"High","Error")) -> Low
A5: Regulation | B5: Yes | C5: No/Yes | R5: X Axis
A6: Eco Max: | B6: 800 | R6: Stop | S6: =MAX(IF(ISNUMBER(E43:E193),E43:E193)) -> 43059.67795
A7: Eco Min: | B7: 380 | R7: Y Axis
A8: Zone | B8: MidAtl
A9: Fuel Type | B9: Coal
A10: Governor Settings | B10: Enter Governor Data here: | C10: Example Data | R10: MAX | S10: =ROUND(MAX(MAX(IF(ISNUMBER(G43:G193),G43:G193)),MAX(IF(ISNUMBER(L43:L193),L43:L193)))+3,0) -> 606
A11: Droop (%): | B11: 0.05 | C11: 0.05 | R11: MIN | S11: =ROUND(MIN(MIN(IF(ISNUMBER(G43:G193),G43:G193)),MIN(IF(ISNUMBER(L43:L193),L43:L193)))-3,0) -> 597
A12: Deadband (Hz): | B12: 0.036 | C12: 0.036 | R12: PointA
A13: Plot Times | B13: Enter Start Date/Time of Event here: | Q13: =43 + (MATCH(R13,$E$43:$E$193) - 1) -> 73 | R13: =B14 -> 2017-11-20T16:12:15 | S13: =S10 -> 606
A14: Event Start: | B14: 2017-11-20T16:12:15 | R14: =B14 -> 2017-11-20T16:12:15 | S14: =S11 -> 597
A15: Plot Start: | B15: =B14-TIME(0,1,0) -> 2017-11-20T16:11:15 | R15: Point B
A16: Plot End: | B16: =B14+TIME(0,4,0) -> 2017-11-20T16:16:15 | Q16: =43 + (MATCH(R16,$E$43:$E$193) - 1) -> 91 | R16: =B14+TIME(0,0,36) -> 2017-11-20T16:12:51 | S16: =S10 -> 606
A17: Interval(seconds): | B17: 2 | R17: =B14+TIME(0,0,36) -> 2017-11-20T16:12:51 | S17: =S11 -> 597
A19: Unit Response (in MW) | B19: Actual Resp. | C19: Expected Resp.
A20: Point A = | B20: 0 | C20: 0
A21: Point B = | B21: =B85 -> 0 | C21: =A85 -> 2.371040724
A23: Unit Output (in MW) | B23: Actual Resp. | C23: Expected Resp.
A24: Point A = | B24: =B73 -> 600 | C24: =A73 -> 600
A25: Point B = | B25: =B84 -> 600 | C25: =A84 -> 602.3710407
A27: Actual Response = | B27: =$B$85-$B$32 -> 0 | C27: MW
A28: Expected Response = | B28: =IF($L$43=0,"Off-line",IF($B$5= "Yes", "Regulation",IF(OR((A73>=$H$43),($I$43>=A73)),"No Capacity",$A$85-$B$32))) -> Regulation | C28: MW
A29: Performance= | B29: =IFERROR(MIN(MAX((1-(B28-B27)/B28),0),1),B28) -> Regulation | C29: MW
B30: =IFERROR(IF(B29>=0.5,"Pass","Fail"),"") -> Pass
A32: Ramp Rate | B32: =($G$73-$G$43)*0.53 -> 0
K41: =INDEX(D43:D193,MATCH(TRUE,INDEX(D43:D193<>0,),0)) -> 1.512820513 | L41: =VLOOKUP(K41,$D$43:$G$193,4,TRUE) -> 600 | Q41: =B14-TIME(0,10,0) -> 2017-11-20T16:02:15
E42: Time | F42: Frequency (Hz) | G42: Unit Output (MW) | H42: Eco Max (MW) | I42: Eco Min (MW) | J42: PFR Capacity (MW) | K42: Expected Response (MW) | L42: Expected Response Graph (Net MW) | M42: Basepoint (MW) | P42: Output Timestamp | Q42: Unit Output (MW) | R42: Regulation | S42: Unit Ramp before Event (MW/min)
D43: =K43 -> 0 | E43: =B15 -> 43059.67448 | F43: 60.0063 | G43: 600 | H43: =B6-(B6*0.05) -> 760 | I43: =B7 + (B6*0.05) -> 420 | J43: =IF($B$4="low",H43-G43,IF($B$4="high",G43-I43,"error")) -> 160 | K43: =IF(F43<(60-$B$12),((-1)*H43*((F43-60+$B$12)/(60*$B$11-$B$12))),IF(F43>(60+$B$12),((-1)*H43*((F43-60-$B$12)/(60*$B$11-$B$12))),0)) -> 0 | L43: =IF(G43<1,0,IF(K43=0,(G43+K43),($L$41+K43))) -> 600 | P43: =Q41 -> 43059.66823 | Q43: 400 | R43: =B5 -> Yes | S43: =Q43 -> 400 | T43: MW-10min before
D44: =K44 -> 0 | E44: =IF(E43+TIME(0,0,$B$17) > $B$16,NA(),E43+TIME(0,0,$B$17)) -> 43059.6745 | F44: 60.0062 | G44: 600 | H44: =IF(ISERROR(E44),NA(),H43) -> 760 | I44: =IF(ISERROR(E44),NA(),I43) -> 420 | J44: =IF($B$4="low",H44-G44,IF($B$4="high",G44-I44,"error")) -> 160 | K44: =IF(ISERROR(E44),NA(),IF(F44<(60-$B$12),((-1)*H44*((F44-60+$B$12)/(60*$B$11-$B$12))),IF(F44>(60+$B$12),((-1)*H44*((F44-60-$B$12)/(60*$B$11-$B$12))),0))) -> 0 | L44: =IF(ISERROR(E44),NA(),IF(G44<1,0,IF(K44=0,(G44+K44),($L$41+K44)))) -> 600 | P44: =P43+TIME(0,0,2) -> 43059.66825 | Q44: 400 | S44: =Q343 -> 400 | T44: MW- 0min before
D45: 0 | E45: =IF(E44+TIME(0,0,$B$17) > $B$16,NA(),E44+TIME(0,0,$B$17)) -> 43059.67453 | F45: 60.0061 | G45: 600 | H45: =IF(ISERROR(E45),NA(),H44) -> 760 | I45: =IF(ISERROR(E45),NA(),I44) -> 420 | J45: 160 | K45: =IF(ISERROR(E45),NA(),IF(F45<(60-$B$12),((-1)*H45*((F45-60+$B$12)/(60*$B$11-$B$12))),IF(F45>(60+$B$12),((-1)*H45*((F45-60-$B$12)/(60*$B$11-$B$12))),0))) -> 0 | L45: =IF(ISERROR(E45),NA(),IF(G45<1,0,IF(K45=0,(G45+K45),($L$41+K45)))) -> 600 | P45: =P44+TIME(0,0,2) -> 43059.66828 | Q45: 400 | S45: =(S44-S43)/10 -> 0 | T45: MW/min
D46: 0 | E46: 43059.67455 | F46: 60.006 | G46: 600 | H46: 760 | I46: 420 | J46: 160 | K46: 0 | L46: 600 | P46: 43059.6683 | Q46: 400
D47: 0 | E47: 43059.67457 | F47: 60.0059 | G47: 600 | H47: 760 | I47: 420 | J47: 160 | K47: 0 | L47: 600 | P47: 43059.66832 | Q47: 400
D48: 0 | E48: 43059.67459 | F48: 60.0058 | G48: 600 | H48: 760 | I48: 420 | J48: 160 | K48: 0 | L48: 600 | P48: 43059.66834 | Q48: 400
D49: 0 | E49: 43059.67462 | F49: 60.0057 | G49: 600 | H49: 760 | I49: 420 | J49: 160 | K49: 0 | L49: 600 | P49: 43059.66837 | Q49: 400
D50: 0 | E50: 43059.67464 | F50: 60.0057 | G50: 600 | H50: 760 | I50: 420 | J50: 160 | K50: 0 | L50: 600 | P50: 43059.66839 | Q50: 400
D51: 0 | E51: 43059.67466 | F51: 60.0053 | G51: 600 | H51: 760 | I51: 420 | J51: 160 | K51: 0 | L51: 600 | P51: 43059.66841 | Q51: 400
D52: 0 | E52: 43059.67469 | F52: 60.0048 | G52: 600 | H52: 760 | I52: 420 | J52: 160 | K52: 0 | L52: 600 | P52: 43059.66844 | Q52: 400
D53: 0 | E53: 43059.67471 | F53: 60.0042 | G53: 600 | H53: 760 | I53: 420 | J53: 160 | K53: 0 | L53: 600 | P53: 43059.66846 | Q53: 400
D54: 0 | E54: 43059.67473 | F54: 60.0037 | G54: 600 | H54: 760 | I54: 420 | J54: 160 | K54: 0 | L54: 600 | P54: 43059.66848 | Q54: 400
D55: 0 | E55: 43059.67476 | F55: 60.0031 | G55: 600 | H55: 760 | I55: 420 | J55: 160 | K55: 0 | L55: 600 | P55: 43059.66851 | Q55: 400
D56: 0 | E56: 43059.67478 | F56: 60.0035 | G56: 600 | H56: 760 | I56: 420 | J56: 160 | K56: 0 | L56: 600 | P56: 43059.66853 | Q56: 400
D57: 0 | E57: 43059.6748 | F57: 60.0046 | G57: 600 | H57: 760 | I57: 420 | J57: 160 | K57: 0 | L57: 600 | P57: 43059.66855 | Q57: 400
D58: 0 | E58: 43059.67483 | F58: 60.0058 | G58: 600 | H58: 760 | I58: 420 | J58: 160 | K58: 0 | L58: 600 | P58: 43059.66858 | Q58: 400
D59: 0 | E59: 43059.67485 | F59: 60.007 | G59: 600 | H59: 760 | I59: 420 | J59: 160 | K59: 0 | L59: 600 | P59: 43059.6686 | Q59: 400
D60: 0 | E60: 43059.67487 | F60: 60.0082 | G60: 600 | H60: 760 | I60: 420 | J60: 160 | K60: 0 | L60: 600 | P60: 43059.66862 | Q60: 400
D61: 0 | E61: 43059.6749 | F61: 60.0084 | G61: 600 | H61: 760 | I61: 420 | J61: 160 | K61: 0 | L61: 600 | P61: 43059.66865 | Q61: 400
D62: 0 | E62: 43059.67492 | F62: 60.0074 | G62: 600 | H62: 760 | I62: 420 | J62: 160 | K62: 0 | L62: 600 | P62: 43059.66867 | Q62: 400
D63: 0 | E63: 43059.67494 | F63: 60.0065 | G63: 600 | H63: 760 | I63: 420 | J63: 160 | K63: 0 | L63: 600 | P63: 43059.66869 | Q63: 400
D64: 0 | E64: 43059.67497 | F64: 60.0056 | G64: 600 | H64: 760 | I64: 420 | J64: 160 | K64: 0 | L64: 600 | P64: 43059.66872 | Q64: 400
D65: 0 | E65: 43059.67499 | F65: 60.0047 | G65: 600 | H65: 760 | I65: 420 | J65: 160 | K65: 0 | L65: 600 | P65: 43059.66874 | Q65: 400
D66: 0 | E66: 43059.67501 | F66: 60.0046 | G66: 600 | H66: 760 | I66: 420 | J66: 160 | K66: 0 | L66: 600 | P66: 43059.66876 | Q66: 400
D67: 0 | E67: 43059.67503 | F67: 60.0053 | G67: 600 | H67: 760 | I67: 420 | J67: 160 | K67: 0 | L67: 600 | P67: 43059.66878 | Q67: 400
D68: 0 | E68: 43059.67506 | F68: 60.0061 | G68: 600 | H68: 760 | I68: 420 | J68: 160 | K68: 0 | L68: 600 | P68: 43059.66881 | Q68: 400
D69: 0 | E69: 43059.67508 | F69: 60.0068 | G69: 600 | H69: 760 | I69: 420 | J69: 160 | K69: 0 | L69: 600 | P69: 43059.66883 | Q69: 400
D70: 0 | E70: 43059.6751 | F70: 60.0075 | G70: 600 | H70: =IF(ISERROR(E70),NA(),H69) -> 760 | I70: 420 | J70: 160 | K70: 0 | L70: 600 | P70: 43059.66885 | Q70: 400
A71: Expected | B71: Actual | D71: 0 | E71: 43059.67513 | F71: 60.0067 | G71: 600 | H71: 760 | I71: 420 | J71: 160 | K71: 0 | L71: 600 | P71: 43059.66888 | Q71: 400
A72: Point A | D72: 0 | E72: 43059.67515 | F72: 60.0043 | G72: 600 | H72: 760 | I72: 420 | J72: 160 | K72: 0 | L72: 600 | P72: 43059.6689 | Q72: 400
A73: =AVERAGE(INDIRECT("L"&$A$75&":L"&$A$76)) -> 600 | B73: =AVERAGE(INDIRECT("G"&$A$75&":G"&$A$76)) -> 600 | C73: MW output | D73: 0 | E73: 43059.67517 | F73: 60.0019 | G73: 600 | H73: 760 | I73: 420 | J73: 160 | K73: 0 | L73: 600 | P73: 43059.66892 | Q73: 400
A74: =AVERAGE(INDIRECT("K"&$A$75&":K"&$A$76)) -> 0 | B74: =AVERAGE(INDIRECT("K"&$A$75&":K"&$A$76)) -> 0 | C74: PFR expected | D74: 0 | E74: 43059.6752 | F74: 59.9996 | G74: 600 | H74: 760 | I74: 420 | J74: 160 | K74: 0 | L74: 600 | P74: 43059.66895 | Q74: 400
A75: =43 + (MATCH(B75,$E$43:$E$193) - 1) -> 66 | B75: =R13-TIME(0,0,14) -> 2017-11-20T16:12:01 | D75: 0 | E75: 43059.67522 | F75: 59.9972 | G75: 600 | H75: 760 | I75: 420 | J75: 160 | K75: 0 | L75: 600 | P75: 43059.66897 | Q75: 400
A76: =Q13 -> 73 | B76: =R13 -> 2017-11-20T16:12:15 | D76: 0 | E76: 43059.67524 | F76: 59.9918 | G76: 600 | H76: 760 | I76: 420 | J76: 160 | K76: 0 | L76: 600 | P76: 43059.66899 | Q76: 400
D77: 0 | E77: 43059.67527 | F77: 59.9834 | G77: 600 | H77: 760 | I77: 420 | J77: 160 | K77: 0 | L77: 600 | P77: 43059.66902 | Q77: 400
D78: 0 | E78: 43059.67529 | F78: 59.9749 | G78: 600 | H78: 760 | I78: 420 | J78: 160 | K78: 0 | L78: 600 | P78: 43059.66904 | Q78: 400
D79: 0 | E79: 43059.67531 | F79: 59.9665 | G79: 600 | H79: 760 | I79: 420 | J79: 160 | K79: 0 | L79: 600 | P79: 43059.66906 | Q79: 400
D80: 1.512820513 | E80: 43059.67534 | F80: 59.9581 | G80: 600 | H80: 760 | I80: 420 | J80: 160 | K80: 1.512820513 | L80: 601.5128205 | P80: 43059.66909 | Q80: 400
D81: 2.538461538 | E81: 43059.67536 | F81: 59.9541 | G81: 600 | H81: 760 | I81: 420 | J81: 160 | K81: 2.538461538 | L81: 602.5384615 | P81: 43059.66911 | Q81: 400
D82: 2.41025641 | E82: 43059.67538 | F82: 59.9546 | G82: 600 | H82: 760 | I82: 420 | J82: 160 | K82: 2.41025641 | L82: 602.4102564 | P82: 43059.66913 | Q82: 400
A83: Point B | D83: 2.307692308 | E83: 43059.67541 | F83: 59.955 | G83: 600 | H83: 760 | I83: 420 | J83: 160 | K83: 2.307692308 | L83: 602.3076923 | P83: 43059.66916 | Q83: 400
A84: =AVERAGE(INDIRECT("L"&$A$86&":L"&$A$87)) -> 602.3710407 | B84: =AVERAGE(INDIRECT("G"&$A$86&":G"&$A$87)) -> 600 | C84: MW output | D84: 2.179487179 | E84: 43059.67543 | F84: 59.9555 | G84: 600 | H84: 760 | I84: 420 | J84: 160 | K84: 2.179487179 | L84: 602.1794872 | P84: 43059.66918 | Q84: 400
A85: =AVERAGE(INDIRECT("K"&$A$86&":K"&$A$87)) -> 2.371040724 | B85: =AVERAGE(INDIRECT("G"&$A$86&":G"&$A$87))-B73 -> 0 | C85: PFR expected | D85: 2.076923077 | E85: 43059.67545 | F85: 59.9559 | G85: 600 | H85: 760 | I85: 420 | J85: 160 | K85: 2.076923077 | L85: 602.0769231 | P85: 43059.6692 | Q85: 400
A86: =43 + (MATCH(B86,$E$43:$E$193) - 1) -> 83 | B86: =R16-TIME(0,0,16) -> 2017-11-20T16:12:35 | D86: 2.102564103 | E86: 43059.67547 | F86: 59.9558 | G86: 600 | H86: 760 | I86: 420 | J86: 160 | K86: 2.102564103 | L86: 602.1025641 | P86: 43059.66922 | Q86: 400
A87: =43 + (MATCH(B87,$E$43:$E$193) - 1) -> 99 | B87: =R16+TIME(0,0,16) -> 2017-11-20T16:13:07 | D87: 2.333333333 | E87: 43059.6755 | F87: 59.9549 | G87: 600 | H87: 760 | I87: 420 | J87: 160 | K87: 2.333333333 | L87: 602.3333333 | P87: 43059.66925 | Q87: 400
D88: 2.538461538 | E88: 43059.67552 | F88: 59.9541 | G88: 600 | H88: 760 | I88: 420 | J88: 160 | K88: 2.538461538 | L88: 602.5384615 | P88: 43059.66927 | Q88: 400
D89: 2.743589744 | E89: 43059.67554 | F89: 59.9533 | G89: 600 | H89: 760 | I89: 420 | J89: 160 | K89: 2.743589744 | L89: 602.7435897 | P89: 43059.66929 | Q89: 400
D90: 2.948717949 | E90: 43059.67557 | F90: 59.9525 | G90: 600 | H90: 760 | I90: 420 | J90: 160 | K90: 2.948717949 | L90: 602.9487179 | P90: 43059.66932 | Q90: 400
D91: 2.948717949 | E91: 43059.67559 | F91: 59.9525 | G91: 600 | H91: 760 | I91: 420 | J91: 160 | K91: 2.948717949 | L91: 602.9487179 | P91: 43059.66934 | Q91: 400
D92: 2.743589744 | E92: 43059.67561 | F92: 59.9533 | G92: 600 | H92: 760 | I92: 420 | J92: 160 | K92: 2.743589744 | L92: 602.7435897 | P92: 43059.66936 | Q92: 400
D93: 2.538461538 | E93: 43059.67564 | F93: 59.9541 | G93: 600 | H93: 760 | I93: 420 | J93: 160 | K93: 2.538461538 | L93: 602.5384615 | P93: 43059.66939 | Q93: 400
D94: 2.333333333 | E94: 43059.67566 | F94: 59.9549 | G94: 600 | H94: 760 | I94: 420 | J94: 160 | K94: 2.333333333 | L94: 602.3333333 | P94: 43059.66941 | Q94: 400
D95: 2.102564103 | E95: 43059.67568 | F95: 59.9558 | G95: 600 | H95: 760 | I95: 420 | J95: 160 | K95: 2.102564103 | L95: 602.1025641 | P95: 43059.66943 | Q95: 400
D96: 2.025641026 | E96: 43059.67571 | F96: 59.9561 | G96: 600 | H96: 760 | I96: 420 | J96: 160 | K96: 2.025641026 | L96: 602.025641 | P96: 43059.66946 | Q96: 400
D97: 2.076923077 | E97: 43059.67573 | F97: 59.9559 | G97: 600 | H97: 760 | I97: 420 | J97: 160 | K97: 2.076923077 | L97: 602.0769231 | P97: 43059.66948 | Q97: 400
D98: 2.128205128 | E98: 43059.67575 | F98: 59.9557 | G98: 600 | H98: 760 | I98: 420 | J98: 160 | K98: 2.128205128 | L98: 602.1282051 | P98: 43059.6695 | Q98: 400
D99: 2.179487179 | E99: 43059.67578 | F99: 59.9555 | G99: 600 | H99: 760 | I99: 420 | J99: 160 | K99: 2.179487179 | L99: 602.1794872 | P99: 43059.66953 | Q99: 400
D100: 2.230769231 | E100: 43059.6758 | F100: 59.9553 | G100: 600 | H100: 760 | I100: 420 | J100: 160 | K100: 2.230769231 | L100: 602.2307692 | P100: 43059.66955 | Q100: 400
D101: 2.230769231 | E101: 43059.67582 | F101: 59.9553 | G101: 600 | H101: 760 | I101: 420 | J101: 160 | K101: 2.230769231 | L101: 602.2307692 | P101: 43059.66957 | Q101: 400
D102: 2.179487179 | E102: 43059.67584 | F102: 59.9555 | G102: 600 | H102: 760 | I102: 420 | J102: 160 | K102: 2.179487179 | L102: 602.1794872 | P102: 43059.66959 | Q102: 400
D103: 2.128205128 | E103: 43059.67587 | F103: 59.9557 | G103: 600 | H103: 760 | I103: 420 | J103: 160 | K103: 2.128205128 | L103: 602.1282051 | P103: 43059.66962 | Q103: 400
D104: 2.076923077 | E104: 43059.67589 | F104: 59.9559 | G104: 600 | H104: 760 | I104: 420 | J104: 160 | K104: 2.076923077 | L104: 602.0769231 | P104: 43059.66964 | Q104: 400
D105: 2.025641026 | E105: 43059.67591 | F105: 59.9561 | G105: 600 | H105: 760 | I105: 420 | J105: 160 | K105: 2.025641026 | L105: 602.025641 | P105: 43059.66966 | Q105: 400
D106: 2.102564103 | E106: 43059.67594 | F106: 59.9558 | G106: 600 | H106: 760 | I106: 420 | J106: 160 | K106: 2.102564103 | L106: 602.1025641 | P106: 43059.66969 | Q106: 400
D107: 2.282051282 | E107: 43059.67596 | F107: 59.9551 | G107: 600 | H107: 760 | I107: 420 | J107: 160 | K107: 2.282051282 | L107: 602.2820513 | P107: 43059.66971 | Q107: 400
D108: =K108 -> 2.487179487 | E108: 43059.67598 | F108: 59.9543 | G108: 600 | H108: 760 | I108: 420 | J108: =IF($B$4="low",H108-G108,IF($B$4="high",G108-I108,"error")) -> 160 | K108: 2.487179487 | L108: 602.4871795 | P108: 43059.66973 | Q108: 400
D109: 2.666666667 | E109: =IF(E108+TIME(0,0,$B$17) > $B$16,NA(),E108+TIME(0,0,$B$17)) -> 43059.67601 | F109: 59.9536 | G109: 600 | H109: =IF(ISERROR(E109),NA(),H108) -> 760 | I109: =IF(ISERROR(E109),NA(),I108) -> 420 | J109: 160 | K109: =IF(ISERROR(E109),NA(),IF(F109<(60-$B$12),((-1)*H109*((F109-60+$B$12)/(60*$B$11-$B$12))),IF(F109>(60+$B$12),((-1)*H109*((F109-60-$B$12)/(60*$B$11-$B$12))),0))) -> 2.666666667 | L109: =IF(ISERROR(E109),NA(),IF(G109<1,0,IF(K109=0,(G109+K109),($L$41+K109)))) -> 602.6666667 | P109: =P108+TIME(0,0,2) -> 43059.66976 | Q109: 400
D110: 2.846153846 | E110: 43059.67603 | F110: 59.9529 | G110: 600 | H110: 760 | I110: 420 | J110: 160 | K110: 2.846153846 | L110: 602.8461538 | P110: 43059.66978 | Q110: 400
D111: 2.948717949 | E111: 43059.67605 | F111: 59.9525 | G111: 600 | H111: 760 | I111: 420 | J111: 160 | K111: 2.948717949 | L111: 602.9487179 | P111: 43059.6698 | Q111: 400
D112: 2.974358974 | E112: 43059.67608 | F112: 59.9524 | G112: 600 | H112: 760 | I112: 420 | J112: 160 | K112: 2.974358974 | L112: 602.974359 | P112: 43059.66983 | Q112: 400
D113: 3 | E113: 43059.6761 | F113: 59.9523 | G113: 600 | H113: 760 | I113: 420 | J113: 160 | K113: 3 | L113: 603 | P113: 43059.66985 | Q113: 400
D114: 3.025641026 | E114: 43059.67612 | F114: 59.9522 | G114: 600 | H114: 760 | I114: 420 | J114: 160 | K114: 3.025641026 | L114: 603.025641 | P114: 43059.66987 | Q114: 400
D115: 3.051282051 | E115: 43059.67615 | F115: 59.9521 | G115: 600 | H115: 760 | I115: 420 | J115: 160 | K115: 3.051282051 | L115: 603.0512821 | P115: 43059.6699 | Q115: 400
D116: 2.974358974 | E116: 43059.67617 | F116: 59.9524 | G116: 600 | H116: 760 | I116: 420 | J116: 160 | K116: 2.974358974 | L116: 602.974359 | P116: 43059.66992 | Q116: 400
D117: 2.794871795 | E117: 43059.67619 | F117: 59.9531 | G117: 600 | H117: 760 | I117: 420 | J117: 160 | K117: 2.794871795 | L117: 602.7948718 | P117: 43059.66994 | Q117: 400
D118: 2.58974359 | E118: 43059.67622 | F118: 59.9539 | G118: 600 | H118: 760 | I118: 420 | J118: 160 | K118: 2.58974359 | L118: 602.5897436 | P118: 43059.66997 | Q118: 400
D119: 2.41025641 | E119: 43059.67624 | F119: 59.9546 | G119: 600 | H119: 760 | I119: 420 | J119: 160 | K119: 2.41025641 | L119: 602.4102564 | P119: 43059.66999 | Q119: 400
D120: 2.230769231 | E120: 43059.67626 | F120: 59.9553 | G120: 600 | H120: 760 | I120: 420 | J120: 160 | K120: 2.230769231 | L120: 602.2307692 | P120: 43059.67001 | Q120: 400
D121: 2.102564103 | E121: 43059.67628 | F121: 59.9558 | G121: 600 | H121: 760 | I121: 420 | J121: 160 | K121: 2.102564103 | L121: 602.1025641 | P121: 43059.67003 | Q121: 400
D122: 2.025641026 | E122: 43059.67631 | F122: 59.9561 | G122: 600 | H122: 760 | I122: 420 | J122: 160 | K122: 2.025641026 | L122: 602.025641 | P122: 43059.67006 | Q122: 400
D123: 1.948717949 | E123: 43059.67633 | F123: 59.9564 | G123: 600 | H123: 760 | I123: 420 | J123: 160 | K123: 1.948717949 | L123: 601.9487179 | P123: 43059.67008 | Q123: 400
D124: 1.871794872 | E124: 43059.67635 | F124: 59.9567 | G124: 600 | H124: 760 | I124: 420 | J124: 160 | K124: 1.871794872 | L124: 601.8717949 | P124: 43059.6701 | Q124: 400
D125: 1.820512821 | E125: 43059.67638 | F125: 59.9569 | G125: 600 | H125: 760 | I125: 420 | J125: 160 | K125: 1.820512821 | L125: 601.8205128 | P125: 43059.67013 | Q125: 400
D126: 1.769230769 | E126: 43059.6764 | F126: 59.9571 | G126: 600 | H126: 760 | I126: 420 | J126: 160 | K126: 1.769230769 | L126: 601.7692308 | P126: 43059.67015 | Q126: 400
D127: 1.743589744 | E127: 43059.67642 | F127: 59.9572 | G127: 600 | H127: 760 | I127: 420 | J127: 160 | K127: 1.743589744 | L127: 601.7435897 | P127: 43059.67017 | Q127: 400
D128: 1.717948718 | E128: 43059.67645 | F128: 59.9573 | G128: 600 | H128: 760 | I128: 420 | J128: 160 | K128: 1.717948718 | L128: 601.7179487 | P128: 43059.6702 | Q128: 400
D129: 1.692307692 | E129: 43059.67647 | F129: 59.9574 | G129: 600 | H129: 760 | I129: 420 | J129: 160 | K129: 1.692307692 | L129: 601.6923077 | P129: 43059.67022 | Q129: 400
D130: 1.666666667 | E130: 43059.67649 | F130: 59.9575 | G130: 600 | H130: 760 | I130: 420 | J130: 160 | K130: 1.666666667 | L130: 601.6666667 | P130: 43059.67024 | Q130: 400
D131: 1.641025641 | E131: 43059.67652 | F131: 59.9576 | G131: 600 | H131: 760 | I131: 420 | J131: 160 | K131: 1.641025641 | L131: 601.6410256 | P131: 43059.67027 | Q131: 400
D132: 1.615384615 | E132: 43059.67654 | F132: 59.9577 | G132: 600 | H132: 760 | I132: 420 | J132: 160 | K132: 1.615384615 | L132: 601.6153846 | P132: 43059.67029 | Q132: 400
D133: 1.58974359 | E133: 43059.67656 | F133: 59.9578 | G133: 600 | H133: 760 | I133: 420 | J133: 160 | K133: 1.58974359 | L133: 601.5897436 | P133: 43059.67031 | Q133: 400
D134: 1.564102564 | E134: 43059.67659 | F134: 59.9579 | G134: 600 | H134: 760 | I134: 420 | J134: 160 | K134: 1.564102564 | L134: 601.5641026 | P134: 43059.67034 | Q134: 400
D135: 1.538461538 | E135: 43059.67661 | F135: 59.958 | G135: 600 | H135: 760 | I135: 420 | J135: 160 | K135: 1.538461538 | L135: 601.5384615 | P135: 43059.67036 | Q135: 400
D136: 1.512820513 | E136: 43059.67663 | F136: 59.9581 | G136: 600 | H136: 760 | I136: 420 | J136: 160 | K136: 1.512820513 | L136: 601.5128205 | P136: 43059.67038 | Q136: 400
D137: 1.461538462 | E137: 43059.67666 | F137: 59.9583 | G137: 600 | H137: 760 | I137: 420 | J137: 160 | K137: 1.461538462 | L137: 601.4615385 | P137: 43059.67041 | Q137: 400
D138: 1.41025641 | E138: 43059.67668 | F138: 59.9585 | G138: 600 | H138: 760 | I138: 420 | J138: 160 | K138: 1.41025641 | L138: 601.4102564 | P138: 43059.67043 | Q138: 400
D139: 1.384615385 | E139: 43059.6767 | F139: 59.9586 | G139: 600 | H139: 760 | I139: 420 | J139: 160 | K139: 1.384615385 | L139: 601.3846154 | P139: 43059.67045 | Q139: 400
D140: 1.333333333 | E140: 43059.67672 | F140: 59.9588 | G140: 600 | H140: 760 | I140: 420 | J140: 160 | K140: 1.333333333 | L140: 601.3333333 | P140: 43059.67047 | Q140: 400
D141: 1.153846154 | E141: 43059.67675 | F141: 59.9595 | G141: 600 | H141: 760 | I141: 420 | J141: 160 | K141: 1.153846154 | L141: 601.1538462 | P141: 43059.6705 | Q141: 400
D142: 0.8461538462 | E142: 43059.67677 | F142: 59.9607 | G142: 600 | H142: 760 | I142: 420 | J142: 160 | K142: 0.8461538462 | L142: 600.8461538 | P142: 43059.67052 | Q142: 400
D143: 0.5384615385 | E143: 43059.67679 | F143: 59.9619 | G143: 600 | H143: 760 | I143: 420 | J143: 160 | K143: 0.5384615385 | L143: 600.5384615 | P143: 43059.67054 | Q143: 400
D144: 0.2307692308 | E144: 43059.67682 | F144: 59.9631 | G144: 600 | H144: 760 | I144: 420 | J144: 160 | K144: 0.2307692308 | L144: 600.2307692 | P144: 43059.67057 | Q144: 400
D145: 0 | E145: 43059.67684 | F145: 59.9643 | G145: 600 | H145: 760 | I145: 420 | J145: 160 | K145: 0 | L145: 600 | P145: 43059.67059 | Q145: 400
D146: 0 | E146: 43059.67686 | F146: 59.9654 | G146: 600 | H146: 760 | I146: 420 | J146: 160 | K146: 0 | L146: 600 | P146: 43059.67061 | Q146: 400
D147: 0 | E147: 43059.67689 | F147: 59.9665 | G147: 600 | H147: 760 | I147: 420 | J147: 160 | K147: 0 | L147: 600 | P147: 43059.67064 | Q147: 400
D148: 0 | E148: 43059.67691 | F148: 59.9676 | G148: 600 | H148: 760 | I148: 420 | J148: 160 | K148: 0 | L148: 600 | P148: 43059.67066 | Q148: 400
D149: 0 | E149: 43059.67693 | F149: 59.9687 | G149: 600 | H149: 760 | I149: 420 | J149: 160 | K149: 0 | L149: 600 | P149: 43059.67068 | Q149: 400
D150: 0 | E150: 43059.67696 | F150: 59.9698 | G150: 600 | H150: 760 | I150: 420 | J150: 160 | K150: 0 | L150: 600 | P150: 43059.67071 | Q150: 400
D151: 0 | E151: 43059.67698 | F151: 59.9705 | G151: 600 | H151: 760 | I151: 420 | J151: 160 | K151: 0 | L151: 600 | P151: 43059.67073 | Q151: 400
D152: 0 | E152: 43059.677 | F152: 59.9708 | G152: 600 | H152: 760 | I152: 420 | J152: 160 | K152: 0 | L152: 600 | P152: 43059.67075 | Q152: 400
D153: 0 | E153: 43059.67703 | F153: 59.971 | G153: 600 | H153: 760 | I153: 420 | J153: 160 | K153: 0 | L153: 600 | P153: 43059.67078 | Q153: 400
D154: 0 | E154: 43059.67705 | F154: 59.9713 | G154: 600 | H154: 760 | I154: 420 | J154: 160 | K154: 0 | L154: 600 | P154: 43059.6708 | Q154: 400
D155: 0 | E155: 43059.67707 | F155: 59.9716 | G155: 600 | H155: 760 | I155: 420 | J155: 160 | K155: 0 | L155: 600 | P155: 43059.67082 | Q155: 400
D156: 0 | E156: 43059.67709 | F156: 60.0206 | G156: 600 | H156: 760 | I156: 420 | J156: 160 | K156: 0 | L156: 600 | P156: 43059.67084 | Q156: 400
D157: 0 | E157: 43059.67712 | F157: 60.0225 | G157: 600 | H157: 760 | I157: 420 | J157: 160 | K157: 0 | L157: 600 | P157: 43059.67087 | Q157: 400
D158: 0 | E158: 43059.67714 | F158: 60.021 | G158: 600 | H158: 760 | I158: 420 | J158: 160 | K158: 0 | L158: 600 | P158: 43059.67089 | Q158: 400
D159: 0 | E159: 43059.67716 | F159: 60.0215 | G159: 600 | H159: 760 | I159: 420 | J159: 160 | K159: 0 | L159: 600 | P159: 43059.67091 | Q159: 400
D160: 0 | E160: 43059.67719 | F160: 60.0195 | G160: 600 | H160: 760 | I160: 420 | J160: 160 | K160: 0 | L160: 600 | P160: 43059.67094 | Q160: 400
D161: 0 | E161: 43059.67721 | F161: 60.0185 | G161: 600 | H161: 760 | I161: 420 | J161: 160 | K161: 0 | L161: 600 | P161: 43059.67096 | Q161: 400
D162: 0 | E162: 43059.67723 | F162: 60.019 | G162: 600 | H162: 760 | I162: 420 | J162: 160 | K162: 0 | L162: 600 | P162: 43059.67098 | Q162: 400
D163: 0 | E163: 43059.67726 | F163: 60.0175 | G163: 600 | H163: 760 | I163: 420 | J163: 160 | K163: 0 | L163: 600 | P163: 43059.67101 | Q163: 400
D164: 0 | E164: 43059.67728 | F164: 60.0175 | G164: 600 | H164: 760 | I164: 420 | J164: 160 | K164: 0 | L164: 600 | P164: 43059.67103 | Q164: 400
D165: 0 | E165: 43059.6773 | F165: 60.0169 | G165: 600 | H165: 760 | I165: 420 | J165: 160 | K165: 0 | L165: 600 | P165: 43059.67105 | Q165: 400
D166: 0 | E166: 43059.67733 | F166: 60.0155 | G166: 600 | H166: 760 | I166: 420 | J166: 160 | K166: 0 | L166: 600 | P166: 43059.67108 | Q166: 400
D167: 0 | E167: 43059.67735 | F167: 60.0165 | G167: 600 | H167: 760 | I167: 420 | J167: 160 | K167: 0 | L167: 600 | P167: 43059.6711 | Q167: 400
D168: 0 | E168: 43059.67737 | F168: 60.0161 | G168: 600 | H168: 760 | I168: 420 | J168: 160 | K168: 0 | L168: 600 | P168: 43059.67112 | Q168: 400
D169: 0 | E169: 43059.6774 | F169: 60.0196 | G169: 600 | H169: 760 | I169: 420 | J169: 160 | K169: 0 | L169: 600 | P169: 43059.67115 | Q169: 400
D170: 0 | E170: 43059.67742 | F170: 60.022 | G170: 600 | H170: 760 | I170: 420 | J170: 160 | K170: 0 | L170: 600 | P170: 43059.67117 | Q170: 400
D171: 0 | E171: 43059.67744 | F171: 60.0225 | G171: 600 | H171: 760 | I171: 420 | J171: 160 | K171: 0 | L171: 600 | P171: 43059.67119 | Q171: 400
D172: =K172 -> 0 | E172: 43059.67747 | F172: 60.023 | G172: 600 | H172: 760 | I172: 420 | J172: =IF($B$4="low",H172-G172,IF($B$4="high",G172-I172,"error")) -> 160 | K172: 0 | L172: 600 | P172: 43059.67122 | Q172: 400
D173: 0 | E173: =IF(E172+TIME(0,0,$B$17) > $B$16,NA(),E172+TIME(0,0,$B$17)) -> 43059.67749 | F173: 60.024 | G173: 600 | H173: =IF(ISERROR(E173),NA(),H172) -> 760 | I173: =IF(ISERROR(E173),NA(),I172) -> 420 | J173: 160 | K173: =IF(ISERROR(E173),NA(),IF(F173<(60-$B$12),((-1)*H173*((F173-60+$B$12)/(60*$B$11-$B$12))),IF(F173>(60+$B$12),((-1)*H173*((F173-60-$B$12)/(60*$B$11-$B$12))),0))) -> 0 | L173: =IF(ISERROR(E173),NA(),IF(G173<1,0,IF(K173=0,(G173+K173),($L$41+K173)))) -> 600 | P173: =P172+TIME(0,0,2) -> 43059.67124 | Q173: 400
D174: 0 | E174: 43059.67751 | F174: 60.023 | G174: 600 | H174: 760 | I174: 420 | J174: 160 | K174: 0 | L174: 600 | P174: 43059.67126 | Q174: 400
D175: 0 | E175: 43059.67753 | F175: 60.023 | G175: 600 | H175: 760 | I175: 420 | J175: 160 | K175: 0 | L175: 600 | P175: 43059.67128 | Q175: 400
D176: 0 | E176: 43059.67756 | F176: 60.0235 | G176: 600 | H176: 760 | I176: 420 | J176: 160 | K176: 0 | L176: 600 | P176: 43059.67131 | Q176: 400
D177: 0 | E177: 43059.67758 | F177: 60.0251 | G177: 600 | H177: 760 | I177: 420 | J177: 160 | K177: 0 | L177: 600 | P177: 43059.67133 | Q177: 400
D178: 0 | E178: 43059.6776 | F178: 60.0276 | G178: 600 | H178: 760 | I178: 420 | J178: 160 | K178: 0 | L178: 600 | P178: 43059.67135 | Q178: 400
D179: 0 | E179: 43059.67763 | F179: 60.0301 | G179: 600 | H179: 760 | I179: 420 | J179: 160 | K179: 0 | L179: 600 | P179: 43059.67138 | Q179: 400
D180: 0 | E180: 43059.67765 | F180: 60.033 | G180: 600 | H180: 760 | I180: 420 | J180: 160 | K180: 0 | L180: 600 | P180: 43059.6714 | Q180: 400
D181: 0 | E181: 43059.67767 | F181: 60.034 | G181: 600 | H181: 760 | I181: 420 | J181: 160 | K181: 0 | L181: 600 | P181: 43059.67142 | Q181: 400
D182: 0 | E182: 43059.6777 | F182: 60.0335 | G182: 600 | H182: 760 | I182: 420 | J182: 160 | K182: 0 | L182: 600 | P182: 43059.67145 | Q182: 400
D183: 0 | E183: 43059.67772 | F183: 60.0325 | G183: 600 | H183: 760 | I183: 420 | J183: 160 | K183: 0 | L183: 600 | P183: 43059.67147 | Q183: 400
D184: 0 | E184: 43059.67774 | F184: 60.031 | G184: 600 | H184: 760 | I184: 420 | J184: 160 | K184: 0 | L184: 600 | P184: 43059.67149 | Q184: 400
D185: 0 | E185: 43059.67777 | F185: 60.03 | G185: 600 | H185: 760 | I185: 420 | J185: 160 | K185: 0 | L185: 600 | P185: 43059.67152 | Q185: 400
D186: 0 | E186: 43059.67779 | F186: 60.03 | G186: 600 | H186: 760 | I186: 420 | J186: 160 | K186: 0 | L186: 600 | P186: 43059.67154 | Q186: 400
D187: 0 | E187: 43059.67781 | F187: 60.03 | G187: 600 | H187: 760 | I187: 420 | J187: 160 | K187: 0 | L187: 600 | P187: 43059.67156 | Q187: 400
D188: 0 | E188: 43059.67784 | F188: 60.03 | G188: 600 | H188: 760 | I188: 420 | J188: 160 | K188: 0 | L188: 600 | P188: 43059.67159 | Q188: 400
D189: 0 | E189: 43059.67786 | F189: 60.031 | G189: 600 | H189: 760 | I189: 420 | J189: 160 | K189: 0 | L189: 600 | P189: 43059.67161 | Q189: 400
D190: 0 | E190: 43059.67788 | F190: 60.03 | G190: 600 | H190: 760 | I190: 420 | J190: 160 | K190: 0 | L190: 600 | P190: 43059.67163 | Q190: 400
D191: 0 | E191: 43059.67791 | F191: 60.0305 | G191: 600 | H191: 760 | I191: 420 | J191: 160 | K191: 0 | L191: 600 | P191: 43059.67166 | Q191: 400
D192: 0 | E192: 43059.67793 | F192: 60.0305 | G192: 600 | H192: 760 | I192: 420 | J192: 160 | K192: 0 | L192: 600 | P192: 43059.67168 | Q192: 400
D193: 0 | E193: 43059.67795 | F193: 60.0309 | G193: 600 | H193: 760 | I193: 420 | J193: 160 | K193: 0 | L193: 600 | P193: 43059.6717 | Q193: 400
P194: 43059.67172 | Q194: 400
P195: 43059.67175 | Q195: 400
P196: 43059.67177 | Q196: 400
P197: 43059.67179 | Q197: 400
P198: 43059.67182 | Q198: 400
P199: 43059.67184 | Q199: 400
P200: 43059.67186 | Q200: 400
P201: 43059.67189 | Q201: 400
P202: 43059.67191 | Q202: 400
P203: 43059.67193 | Q203: 400
P204: 43059.67196 | Q204: 400
P205: 43059.67198 | Q205: 400
P206: 43059.672 | Q206: 400
P207: 43059.67203 | Q207: 400
P208: 43059.67205 | Q208: 400
P209: 43059.67207 | Q209: 400
P210: 43059.67209 | Q210: 400
P211: 43059.67212 | Q211: 400
P212: 43059.67214 | Q212: 400
... 131 more rows

Sheet Sheet1
A1: =Event!B15 -> 2017-11-20T16:11:15 | E1: =_xll.PIAdvCalcDat(Sheet1!$A$5,Sheet1!$A$1,Sheet1!$A$2,Sheet1!$A$3,"average (time-weighted)","time-weighted",0,1,65,"") -> 2017-11-20T16:11:15 | F1: 60.00318938 | H1: 60.00318938
A2: =Event!B16 -> 2017-11-20T16:16:15 | E2: 2017-11-20T16:11:25 | F2: 60.00147961 | H2: 60.00147961
A3: 10s | E3: 2017-11-20T16:11:35 | F3: 60.00145019 | H3: 60.00145019
E4: 2017-11-20T16:11:45 | F4: 60.0046997 | H4: 60.0046997
A5: ca_rt_fq/pjmc:freq-agc freq:hz | E5: 2017-11-20T16:11:55 | F5: 60.00107763 | H5: 60.00107763
E6: 2017-11-20T16:12:05 | F6: 60.00036009 | H6: 60.00036009
E7: 2017-11-20T16:12:15 | F7: 59.98184779 | H7: 59.98184779
E8: 2017-11-20T16:12:25 | F8: 59.94932106 | H8: 59.94932106
E9: 2017-11-20T16:12:35 | F9: 59.9525846 | H9: 59.9525846
E10: 2017-11-20T16:12:45 | F10: 59.94889144 | H10: 59.94889144
E11: 2017-11-20T16:12:55 | F11: 59.95168505 | H11: 59.95168505
E12: 2017-11-20T16:13:05 | F12: 59.95152342 | H12: 59.95152342
E13: 2017-11-20T16:13:15 | F13: 59.95000086 | H13: 59.95000086
E14: 2017-11-20T16:13:25 | F14: 59.94698225 | H14: 59.94698225
E15: 2017-11-20T16:13:35 | F15: 59.94847209 | H15: 59.94847209
E16: 2017-11-20T16:13:45 | F16: 59.95049151 | H16: 59.95049151
E17: 2017-11-20T16:13:55 | F17: 59.95266433 | H17: 59.95266433
E18: 2017-11-20T16:14:05 | F18: 59.95280553 | H18: 59.95280553
E19: 2017-11-20T16:14:15 | F19: 59.95399076 | H19: 59.95399076
E20: 2017-11-20T16:14:25 | F20: 59.95567702 | H20: 59.95567702
E21: 2017-11-20T16:14:35 | F21: 59.96083974 | H21: 59.96083974
E22: 2017-11-20T16:14:45 | F22: 59.96545306 | H22: 59.96545306
E23: 2017-11-20T16:14:55 | F23: 59.96622784 | H23: 59.96622784
E24: 2017-11-20T16:15:05 | F24: 59.9735483 | H24: 59.9735483
E25: 2017-11-20T16:15:15 | F25: 59.98035798 | H25: 59.98035798
E26: 2017-11-20T16:15:25 | F26: 59.9843316 | H26: 59.9843316
E27: 2017-11-20T16:15:35 | F27: 59.99095286 | H27: 59.99095286
E28: 2017-11-20T16:15:45 | F28: 59.99439258 | H28: 59.99439258
E29: 2017-11-20T16:15:55 | F29: 59.99438621 | H29: 59.99438621
E30: 2017-11-20T16:16:05 | F30: 60.00002887 | H30: 60.00002887
